Workbook

Sheet QuickBooks Desktop Export Tips

Sheet Sheet1
E1: Adams, Bonnie J | G1: Anderson, Tammy B. | I1: Ashley, Richard H. | K1: Bach, Anna K | M1: Blair, Sherri L. | O1: Bobal, Amanda M | Q1: Durbin, Bart T | S1: Erickson, Sue A | U1: Hopf, Sarah E | W1: Housman, Amy M | Y1: Housman, Kimberly A | AA1: Jackson, Lori A | AC1: Kuban, Stephen R | AE1: Ozee, Gabrielle D | AG1: Ruff, Rochelle K | AI1: Shull, Carla M | AK1: Smith, Grace J | AM1: Smith, Katie B | AO1: Smith, Tammy M. | AQ1: Swanson, Ashley A | AS1: Swanson, Pamela J. | AU1: Zippel, Zachary E | AW1: TOTAL
E2: Head of Circulation | G2: Desk Clerk | I2: Director | K2: Page | M2: Desk Clerk | O2: Page | Q2: Bookmobile Driver/Clerk | S2: Bookmobile Driver/Clerk | U2: Children's Librarian | W2: Desk Clerk | Y2: Desk Clerk | AA2: Desk Clerk | AC2: Maintenance | AE2: Page | AG2: Head of Circulation | AI2: Custodian | AK2: Custodian | AM2: Desk Clerk | AO2: HR Coordinator | AQ2: Technical Services | AS2: Adult/Teen Librarian | AU2: Desk Clerk
D3: Date of Hire | E3: 02/27/2006 | G3: 05/17/2017 | I3: 11/10/2009 | K3: 08/24/2017 | M3: 5/17/2017 | O3: 6/15/2015 | Q3: 4/25/2011 | S3: 9/07/2004 | U3: 11/01/2012 | W3: 6/19/2012 | Y3: 01/07/2015 | AA3: 5/20/2017 | AC3: 01/04/2005 | AE3: 9/08/2014 | AG3: 01/07/2015 | AI3: 11/09/2015 | AK3: 7/31/2017 | AM3: 06/09/2015 | AO3: 01/03/2001 | AQ3: 9/10/2014 | AS3: 12/13/2005 | AU3: 10/03/2012
D4: Rate of Pay 1/1/17 - 6/30/17 | E4: 15.40/hr | M4: 10.35/hr | O4: 9.02/hr | Q4: 13.33/hr | S4: 13.33/hr | U4: 16.07/hr | W4: 10.35/hr | Y4: 10.35/hr | AA4: 10.35/hr | AC4: 15.34/hr | AE4: 9.02/hr | AG4: 13.50/hr | AI4: 9.60/hr | AM4: 10.35/hr | AO4: 17/00/hr | AQ4: 16.00/hr | AS4: 18.64/hr | AU4: 10.35/hr
D5: Rate of Pay 7/1/17 - 12/31/17 | G5: 10.35/hr | I5: 66,000 salary | K5: 8.25/hr | M5: $10.35/hr | O5: 9.25/hr | Q5: 13.53/hr | S5: 13.60/hr | U5: 16.23/hr | W5: 10.56/hr | Y5: 10.51/hr | AA5: 10.61/hr | AC5: 15.49/hr | AE5: 9.16/hr | AG5: 15.40/hr | AK5: 9.60/hr | AO5: 18.02/hr | AQ5: 16.64/hr | AS5: 19.76/hr | AU5: 10.77/hr
A6: Employee Wages, Taxes and Adjustments
C7: Gross Pay
D8: Salary | E8: 0 | G8: 0 | I8: 50119.18 | K8: 0 | M8: 0 | O8: 0 | Q8: 0 | S8: 0 | U8: 0 | W8: 0 | Y8: 0 | AA8: 0 | AC8: 0 | AE8: 0 | AG8: 0 | AI8: 0 | AK8: 0 | AM8: 0 | AO8: 0 | AQ8: 0 | AS8: 0 | AU8: 0 | AW8: =ROUND(SUM(E8:AU8),5) -> 50119.18
D9: Sick Salary | E9: 0 | G9: 0 | I9: 3202.31 | K9: 0 | M9: 0 | O9: 0 | Q9: 0 | S9: 0 | U9: 0 | W9: 0 | Y9: 0 | AA9: 0 | AC9: 0 | AE9: 0 | AG9: 0 | AI9: 0 | AK9: 0 | AM9: 0 | AO9: 0 | AQ9: 0 | AS9: 0 | AU9: 0 | AW9: =ROUND(SUM(E9:AU9),5) -> 3202.31
D10: Vacation Salary | E10: 0 | G10: 0 | I10: 9216.92 | K10: 0 | M10: 0 | O10: 0 | Q10: 0 | S10: 0 | U10: 0 | W10: 0 | Y10: 0 | AA10: 0 | AC10: 0 | AE10: 0 | AG10: 0 | AI10: 0 | AK10: 0 | AM10: 0 | AO10: 0 | AQ10: 0 | AS10: 0 | AU10: 0 | AW10: =ROUND(SUM(E10:AU10),5) -> 9216.92
D11: BKKP | E11: 0 | G11: 0 | I11: 0 | K11: 0 | M11: 0 | O11: 0 | Q11: 0 | S11: 0 | U11: 0 | W11: 0 | Y11: 0 | AA11: 0 | AC11: 0 | AE11: 0 | AG11: 0 | AI11: 0 | AK11: 0 | AM11: 0 | AO11: 0 | AQ11: 0 | AS11: 0 | AU11: 0 | AW11: =ROUND(SUM(E11:AU11),5) -> 0
D12: Bonus | E12: 0 | G12: 0 | I12: 0 | K12: 0 | M12: 0 | O12: 0 | Q12: 0 | S12: 0 | U12: 0 | W12: 0 | Y12: 0 | AA12: 0 | AC12: 0 | AE12: 0 | AG12: 0 | AI12: 0 | AK12: 0 | AM12: 0 | AO12: 0 | AQ12: 0 | AS12: 0 | AU12: 0 | AW12: =ROUND(SUM(E12:AU12),5) -> 0
D13: Hourly Regular Rate | E13: 10083.15 | G13: 5128.43 | I13: 462 | K13: 576.69 | M13: 4015.81 | O13: 4044.54 | Q13: 20616.37 | S13: 24095.16 | U13: 29461.83 | W13: 12080.24 | Y13: 8823.27 | AA13: 7585.34 | AC13: 7583.18 | AE13: 6676.11 | AG13: 21542.53 | AI13: 1567.2 | AK13: 1689.6 | AM13: 3503.48 | AO13: 30898.38 | AQ13: 31160.32 | AS13: 33474.72 | AU13: 12917.41 | AW13: =ROUND(SUM(E13:AU13),5) -> 277985.76
D14: Overtime | E14: 0 | G14: 0 | I14: 0 | K14: 0 | M14: 0 | O14: 0 | Q14: 0 | S14: 0 | U14: 0 | W14: 0 | Y14: 0 | AA14: 0 | AC14: 0 | AE14: 0 | AG14: 0 | AI14: 0 | AK14: 0 | AM14: 0 | AO14: 0 | AQ14: 0 | AS14: 0 | AU14: 0 | AW14: =ROUND(SUM(E14:AU14),5) -> 0
D15: Sick Hourly Rate | E15: 238.7 | G15: 0 | I15: 0 | K15: 0 | M15: 0 | O15: 253.48 | Q15: 1422.68 | S15: 199.96 | U15: 375.17 | W15: 114.27 | Y15: 0 | AA15: 0 | AC15: 231.45 | AE15: 0 | AG15: 296.45 | AI15: 57.6 | AK15: 0 | AM15: 124.2 | AO15: 982.43 | AQ15: 0 | AS15: 503.88 | AU15: 136.23 | AW15: =ROUND(SUM(E15:AU15),5) -> 4936.5
D16: Vacation Hourly Rate | E16: 2957.72 | G16: 0 | I16: 0 | K16: 0 | M16: 0 | O16: 454.55 | Q16: 1037.55 | S16: 2028.99 | U16: 1487.91 | W16: 126.72 | Y16: 680.91 | AA16: 322.05 | AC16: 369.51 | AE16: 36.08 | AG16: 1308.05 | AI16: 196.42 | AK16: 0 | AM16: 543.58 | AO16: 2179.4 | AQ16: 672 | AS16: 3517.32 | AU16: 269.1 | AW16: =ROUND(SUM(E16:AU16),5) -> 18187.86
C17: Total Gross Pay | E17: =ROUND(SUM(E7:E16),5) -> 13279.57 | G17: =ROUND(SUM(G7:G16),5) -> 5128.43 | I17: =ROUND(SUM(I7:I16),5) -> 63000.41 | K17: =ROUND(SUM(K7:K16),5) -> 576.69 | M17: =ROUND(SUM(M7:M16),5) -> 4015.81 | O17: =ROUND(SUM(O7:O16),5) -> 4752.57 | Q17: =ROUND(SUM(Q7:Q16),5) -> 23076.6 | S17: =ROUND(SUM(S7:S16),5) -> 26324.11 | U17: =ROUND(SUM(U7:U16),5) -> 31324.91 | W17: =ROUND(SUM(W7:W16),5) -> 12321.23 | Y17: =ROUND(SUM(Y7:Y16),5) -> 9504.18 | AA17: =ROUND(SUM(AA7:AA16),5) -> 7907.39 | AC17: =ROUND(SUM(AC7:AC16),5) -> 8184.14 | AE17: =ROUND(SUM(AE7:AE16),5) -> 6712.19 | AG17: =ROUND(SUM(AG7:AG16),5) -> 23147.03 | AI17: =ROUND(SUM(AI7:AI16),5) -> 1821.22 | AK17: =ROUND(SUM(AK7:AK16),5) -> 1689.6 | AM17: =ROUND(SUM(AM7:AM16),5) -> 4171.26 | AO17: =ROUND(SUM(AO7:AO16),5) -> 34060.21 | AQ17: =ROUND(SUM(AQ7:AQ16),5) -> 31832.32 | AS17: =ROUND(SUM(AS7:AS16),5) -> 37495.92 | AU17: =ROUND(SUM(AU7:AU16),5) -> 13322.74 | AW17: =ROUND(SUM(E17:AU17),5) -> 363648.53
C18: Deductions from Gross Pay
D19: AFLAC (pre-tax) | E19: 0 | G19: 0 | I19: 0 | K19: 0 | M19: 0 | O19: 0 | Q19: 0 | S19: 0 | U19: 0 | W19: 0 | Y19: 0 | AA19: 0 | AC19: 0 | AE19: 0 | AG19: 0 | AI19: 0 | AK19: 0 | AM19: 0 | AO19: -566.28 | AQ19: 0 | AS19: 0 | AU19: 0 | AW19: =ROUND(SUM(E19:AU19),5) -> -566.28
D20: Employee Paid Health Insurance | E20: 0 | G20: 0 | I20: 0 | K20: 0 | M20: 0 | O20: 0 | Q20: -925.2 | S20: 0 | U20: 0 | W20: 0 | Y20: 0 | AA20: 0 | AC20: 0 | AE20: 0 | AG20: 0 | AI20: 0 | AK20: 0 | AM20: 0 | AO20: 0 | AQ20: 0 | AS20: 0 | AU20: 0 | AW20: =ROUND(SUM(E20:AU20),5) -> -925.2
D21: IMRF-Employee Share | E21: -597.62 | G21: 0 | I21: -2835.07 | K21: 0 | M21: 0 | O21: 0 | Q21: -1038.43 | S21: -1184.6 | U21: -1409.68 | W21: 0 | Y21: 0 | AA21: 0 | AC21: 0 | AE21: 0 | AG21: -1041.64 | AI21: 0 | AK21: 0 | AM21: 0 | AO21: -1532.78 | AQ21: -1432.45 | AS21: -1687.32 | AU21: -374.92 | AW21: =ROUND(SUM(E21:AU21),5) -> -13134.51
D22: IMRF Voluntary Additional Contr | E22: 0 | G22: 0 | I22: 0 | K22: 0 | M22: 0 | O22: 0 | Q22: 0 | S22: 0 | U22: 0 | W22: 0 | Y22: 0 | AA22: 0 | AC22: 0 | AE22: 0 | AG22: -854.34 | AI22: 0 | AK22: 0 | AM22: 0 | AO22: -121.62 | AQ22: 0 | AS22: 0 | AU22: 0 | AW22: =ROUND(SUM(E22:AU22),5) -> -975.96
D23: Nationwide 457 Regular | E23: 0 | G23: 0 | I23: 0 | K23: 0 | M23: 0 | O23: 0 | Q23: 0 | S23: 0 | U23: 0 | W23: 0 | Y23: 0 | AA23: 0 | AC23: 0 | AE23: 0 | AG23: -1000 | AI23: 0 | AK23: 0 | AM23: 0 | AO23: -1050 | AQ23: 0 | AS23: 0 | AU23: 0 | AW23: =ROUND(SUM(E23:AU23),5) -> -2050
C24: Total Deductions from Gross Pay | E24: =ROUND(SUM(E18:E23),5) -> -597.62 | G24: =ROUND(SUM(G18:G23),5) -> 0 | I24: =ROUND(SUM(I18:I23),5) -> -2835.07 | K24: =ROUND(SUM(K18:K23),5) -> 0 | M24: =ROUND(SUM(M18:M23),5) -> 0 | O24: =ROUND(SUM(O18:O23),5) -> 0 | Q24: =ROUND(SUM(Q18:Q23),5) -> -1963.63 | S24: =ROUND(SUM(S18:S23),5) -> -1184.6 | U24: =ROUND(SUM(U18:U23),5) -> -1409.68 | W24: =ROUND(SUM(W18:W23),5) -> 0 | Y24: =ROUND(SUM(Y18:Y23),5) -> 0 | AA24: =ROUND(SUM(AA18:AA23),5) -> 0 | AC24: =ROUND(SUM(AC18:AC23),5) -> 0 | AE24: =ROUND(SUM(AE18:AE23),5) -> 0 | AG24: =ROUND(SUM(AG18:AG23),5) -> -2895.98 | AI24: =ROUND(SUM(AI18:AI23),5) -> 0 | AK24: =ROUND(SUM(AK18:AK23),5) -> 0 | AM24: =ROUND(SUM(AM18:AM23),5) -> 0 | AO24: =ROUND(SUM(AO18:AO23),5) -> -3270.68 | AQ24: =ROUND(SUM(AQ18:AQ23),5) -> -1432.45 | AS24: =ROUND(SUM(AS18:AS23),5) -> -1687.32 | AU24: =ROUND(SUM(AU18:AU23),5) -> -374.92 | AW24: =ROUND(SUM(E24:AU24),5) -> -17651.95
B25: Adjusted Gross Pay | E25: =ROUND(E17+E24,5) -> 12681.95 | G25: =ROUND(G17+G24,5) -> 5128.43 | I25: =ROUND(I17+I24,5) -> 60165.34 | K25: =ROUND(K17+K24,5) -> 576.69 | M25: =ROUND(M17+M24,5) -> 4015.81 | O25: =ROUND(O17+O24,5) -> 4752.57 | Q25: =ROUND(Q17+Q24,5) -> 21112.97 | S25: =ROUND(S17+S24,5) -> 25139.51 | U25: =ROUND(U17+U24,5) -> 29915.23 | W25: =ROUND(W17+W24,5) -> 12321.23 | Y25: =ROUND(Y17+Y24,5) -> 9504.18 | AA25: =ROUND(AA17+AA24,5) -> 7907.39 | AC25: =ROUND(AC17+AC24,5) -> 8184.14 | AE25: =ROUND(AE17+AE24,5) -> 6712.19 | AG25: =ROUND(AG17+AG24,5) -> 20251.05 | AI25: =ROUND(AI17+AI24,5) -> 1821.22 | AK25: =ROUND(AK17+AK24,5) -> 1689.6 | AM25: =ROUND(AM17+AM24,5) -> 4171.26 | AO25: =ROUND(AO17+AO24,5) -> 30789.53 | AQ25: =ROUND(AQ17+AQ24,5) -> 30399.87 | AS25: =ROUND(AS17+AS24,5) -> 35808.6 | AU25: =ROUND(AU17+AU24,5) -> 12947.82 | AW25: =ROUND(SUM(E25:AU25),5) -> 345996.58
B26: Taxes Withheld
C27: Federal Withholding | E27: -1459 | G27: -364 | I27: -10130 | K27: 0 | M27: -1 | O27: -316 | Q27: -2409 | S27: -2603 | U27: -1319 | W27: -600 | Y27: -201 | AA27: -7 | AC27: 0 | AE27: -75 | AG27: -370 | AI27: 0 | AK27: 0 | AM27: -340 | AO27: -1831 | AQ27: -3120 | AS27: -4541 | AU27: -1137 | AW27: =ROUND(SUM(E27:AU27),5) -> -30823
C28: Medicare Employee | E28: -192.55 | G28: -74.36 | I28: -913.51 | K28: -8.36 | M28: -58.23 | O28: -68.91 | Q28: -321.2 | S28: -381.7 | U28: -454.21 | W28: -178.66 | Y28: -137.81 | AA28: -114.66 | AC28: -118.67 | AE28: -97.33 | AG28: -335.63 | AI28: -26.41 | AK28: -24.5 | AM28: -60.48 | AO28: -485.66 | AQ28: -461.57 | AS28: -543.69 | AU28: -193.18 | AW28: =ROUND(SUM(E28:AU28),5) -> -5251.28
C29: Social Security Employee | E29: -823.33 | G29: -317.96 | I29: -3906.03 | K29: -35.75 | M29: -248.98 | O29: -294.66 | Q29: -1373.39 | S29: -1632.09 | U29: -1942.14 | W29: -763.92 | Y29: -589.26 | AA29: -490.26 | AC29: -507.42 | AE29: -416.16 | AG29: -1435.12 | AI29: -112.92 | AK29: -104.76 | AM29: -258.62 | AO29: -2076.62 | AQ29: -1973.6 | AS29: -2324.75 | AU29: -826.01 | AW29: =ROUND(SUM(E29:AU29),5) -> -22453.75
C30: IL - Withholding | E30: -444.24 | G30: -230.25 | I30: -2452.43 | K30: -28.55 | M30: -182.47 | O30: -184.6 | Q30: -981.16 | S30: -1059.98 | U30: -1077.9 | W30: -422.45 | Y30: -404.79 | AA30: -333.5 | AC30: -252.88 | AE30: -278.15 | AG30: -643.33 | AI30: -21.37 | AK30: -38.79 | AM30: -156.42 | AO30: -1120.58 | AQ30: -1283.22 | AS30: -1512.73 | AU30: -542.76 | AW30: =ROUND(SUM(E30:AU30),5) -> -13652.55
C31: Medicare Employee Addl Tax | E31: 0 | G31: 0 | I31: 0 | K31: 0 | M31: 0 | O31: 0 | Q31: 0 | S31: 0 | U31: 0 | W31: 0 | Y31: 0 | AA31: 0 | AC31: 0 | AE31: 0 | AG31: 0 | AI31: 0 | AK31: 0 | AM31: 0 | AO31: 0 | AQ31: 0 | AS31: 0 | AU31: 0 | AW31: =ROUND(SUM(E31:AU31),5) -> 0
B32: Total Taxes Withheld | E32: =ROUND(SUM(E26:E31),5) -> -2919.12 | G32: =ROUND(SUM(G26:G31),5) -> -986.57 | I32: =ROUND(SUM(I26:I31),5) -> -17401.97 | K32: =ROUND(SUM(K26:K31),5) -> -72.66 | M32: =ROUND(SUM(M26:M31),5) -> -490.68 | O32: =ROUND(SUM(O26:O31),5) -> -864.17 | Q32: =ROUND(SUM(Q26:Q31),5) -> -5084.75 | S32: =ROUND(SUM(S26:S31),5) -> -5676.77 | U32: =ROUND(SUM(U26:U31),5) -> -4793.25 | W32: =ROUND(SUM(W26:W31),5) -> -1965.03 | Y32: =ROUND(SUM(Y26:Y31),5) -> -1332.86 | AA32: =ROUND(SUM(AA26:AA31),5) -> -945.42 | AC32: =ROUND(SUM(AC26:AC31),5) -> -878.97 | AE32: =ROUND(SUM(AE26:AE31),5) -> -866.64 | AG32: =ROUND(SUM(AG26:AG31),5) -> -2784.08 | AI32: =ROUND(SUM(AI26:AI31),5) -> -160.7 | AK32: =ROUND(SUM(AK26:AK31),5) -> -168.05 | AM32: =ROUND(SUM(AM26:AM31),5) -> -815.52 | AO32: =ROUND(SUM(AO26:AO31),5) -> -5513.86 | AQ32: =ROUND(SUM(AQ26:AQ31),5) -> -6838.39 | AS32: =ROUND(SUM(AS26:AS31),5) -> -8922.17 | AU32: =ROUND(SUM(AU26:AU31),5) -> -2698.95 | AW32: =ROUND(SUM(E32:AU32),5) -> -72180.58
B33: Deductions from Net Pay
C34: Life Insurance | E34: 0 | G34: 0 | I34: -208 | K34: 0 | M34: 0 | O34: 0 | Q34: -200 | S34: 0 | U34: 0 | W34: 0 | Y34: 0 | AA34: 0 | AC34: 0 | AE34: 0 | AG34: 0 | AI34: 0 | AK34: 0 | AM34: 0 | AO34: 0 | AQ34: 0 | AS34: 0 | AU34: 0 | AW34: =ROUND(SUM(E34:AU34),5) -> -408
C35: Roth 457b Plan Emp. | E35: 0 | G35: 0 | I35: -2375 | K35: 0 | M35: 0 | O35: 0 | Q35: 0 | S35: 0 | U35: 0 | W35: 0 | Y35: 0 | AA35: 0 | AC35: 0 | AE35: 0 | AG35: 0 | AI35: 0 | AK35: 0 | AM35: 0 | AO35: -300 | AQ35: 0 | AS35: 0 | AU35: 0 | AW35: =ROUND(SUM(E35:AU35),5) -> -2675
B36: Total Deductions from Net Pay | E36: =ROUND(SUM(E33:E35),5) -> 0 | G36: =ROUND(SUM(G33:G35),5) -> 0 | I36: =ROUND(SUM(I33:I35),5) -> -2583 | K36: =ROUND(SUM(K33:K35),5) -> 0 | M36: =ROUND(SUM(M33:M35),5) -> 0 | O36: =ROUND(SUM(O33:O35),5) -> 0 | Q36: =ROUND(SUM(Q33:Q35),5) -> -200 | S36: =ROUND(SUM(S33:S35),5) -> 0 | U36: =ROUND(SUM(U33:U35),5) -> 0 | W36: =ROUND(SUM(W33:W35),5) -> 0 | Y36: =ROUND(SUM(Y33:Y35),5) -> 0 | AA36: =ROUND(SUM(AA33:AA35),5) -> 0 | AC36: =ROUND(SUM(AC33:AC35),5) -> 0 | AE36: =ROUND(SUM(AE33:AE35),5) -> 0 | AG36: =ROUND(SUM(AG33:AG35),5) -> 0 | AI36: =ROUND(SUM(AI33:AI35),5) -> 0 | AK36: =ROUND(SUM(AK33:AK35),5) -> 0 | AM36: =ROUND(SUM(AM33:AM35),5) -> 0 | AO36: =ROUND(SUM(AO33:AO35),5) -> -300 | AQ36: =ROUND(SUM(AQ33:AQ35),5) -> 0 | AS36: =ROUND(SUM(AS33:AS35),5) -> 0 | AU36: =ROUND(SUM(AU33:AU35),5) -> 0 | AW36: =ROUND(SUM(E36:AU36),5) -> -3083
A37: Net Pay | E37: =ROUND(E6+E25+E32+E36,5) -> 9762.83 | G37: =ROUND(G6+G25+G32+G36,5) -> 4141.86 | I37: =ROUND(I6+I25+I32+I36,5) -> 40180.37 | K37: =ROUND(K6+K25+K32+K36,5) -> 504.03 | M37: =ROUND(M6+M25+M32+M36,5) -> 3525.13 | O37: =ROUND(O6+O25+O32+O36,5) -> 3888.4 | Q37: =ROUND(Q6+Q25+Q32+Q36,5) -> 15828.22 | S37: =ROUND(S6+S25+S32+S36,5) -> 19462.74 | U37: =ROUND(U6+U25+U32+U36,5) -> 25121.98 | W37: =ROUND(W6+W25+W32+W36,5) -> 10356.2 | Y37: =ROUND(Y6+Y25+Y32+Y36,5) -> 8171.32 | AA37: =ROUND(AA6+AA25+AA32+AA36,5) -> 6961.97 | AC37: =ROUND(AC6+AC25+AC32+AC36,5) -> 7305.17 | AE37: =ROUND(AE6+AE25+AE32+AE36,5) -> 5845.55 | AG37: =ROUND(AG6+AG25+AG32+AG36,5) -> 17466.97 | AI37: =ROUND(AI6+AI25+AI32+AI36,5) -> 1660.52 | AK37: =ROUND(AK6+AK25+AK32+AK36,5) -> 1521.55 | AM37: =ROUND(AM6+AM25+AM32+AM36,5) -> 3355.74 | AO37: =ROUND(AO6+AO25+AO32+AO36,5) -> 24975.67 | AQ37: =ROUND(AQ6+AQ25+AQ32+AQ36,5) -> 23561.48 | AS37: =ROUND(AS6+AS25+AS32+AS36,5) -> 26886.43 | AU37: =ROUND(AU6+AU25+AU32+AU36,5) -> 10248.87 | AW37: =ROUND(SUM(E37:AU37),5) -> 270733
A38: Employer Taxes and Contributions
B39: Medicare Company | E39: 192.55 | G39: 74.36 | I39: 913.51 | K39: 8.36 | M39: 58.23 | O39: 68.91 | Q39: 321.2 | S39: 381.7 | U39: 454.21 | W39: 178.66 | Y39: 137.81 | AA39: 114.66 | AC39: 118.67 | AE39: 97.33 | AG39: 335.63 | AI39: 26.41 | AK39: 24.5 | AM39: 60.48 | AO39: 485.66 | AQ39: 461.57 | AS39: 543.69 | AU39: 193.18 | AW39: =ROUND(SUM(E39:AU39),5) -> 5251.28
B40: Social Security Company | E40: 823.33 | G40: 317.96 | I40: 3906.03 | K40: 35.75 | M40: 248.98 | O40: 294.66 | Q40: 1373.39 | S40: 1632.09 | U40: 1942.14 | W40: 763.92 | Y40: 589.26 | AA40: 490.26 | AC40: 507.42 | AE40: 416.16 | AG40: 1435.12 | AI40: 112.92 | AK40: 104.76 | AM40: 258.62 | AO40: 2076.62 | AQ40: 1973.6 | AS40: 2324.75 | AU40: 826.01 | AW40: =ROUND(SUM(E40:AU40),5) -> 22453.75
B41: IL - Unemployment Company | E41: 84.24 | G41: 33.33 | I41: 84.24 | K41: 3.75 | M41: 26.1 | O41: 30.89 | Q41: 84.24 | S41: 84.24 | U41: 84.24 | W41: 80.09 | Y41: 61.78 | AA41: 51.4 | AC41: 53.2 | AE41: 43.63 | AG41: 84.24 | AI41: 11.84 | AK41: 10.98 | AM41: 27.11 | AO41: 84.24 | AQ41: 84.24 | AS41: 84.24 | AU41: 84.24 | AW41: =ROUND(SUM(E41:AU41),5) -> 1276.5
B42: IMRF - Company Share | E42: 1698.42 | G42: 0 | I42: 8057.71 | K42: 0 | M42: 0 | O42: 0 | Q42: 2951.53 | S42: 3366.9 | U42: 4006.46 | W42: 0 | Y42: 0 | AA42: 0 | AC42: 0 | AE42: 0 | AG42: 2960.48 | AI42: 0 | AK42: 0 | AM42: 0 | AO42: 4356.33 | AQ42: 4071.36 | AS42: 4795.7 | AU42: 1065.64 | AW42: =ROUND(SUM(E42:AU42),5) -> 37330.53
A43: Total Employer Taxes and Contributions | E43: =ROUND(SUM(E38:E42),5) -> 2798.54 | G43: =ROUND(SUM(G38:G42),5) -> 425.65 | I43: =ROUND(SUM(I38:I42),5) -> 12961.49 | K43: =ROUND(SUM(K38:K42),5) -> 47.86 | M43: =ROUND(SUM(M38:M42),5) -> 333.31 | O43: =ROUND(SUM(O38:O42),5) -> 394.46 | Q43: =ROUND(SUM(Q38:Q42),5) -> 4730.36 | S43: =ROUND(SUM(S38:S42),5) -> 5464.93 | U43: =ROUND(SUM(U38:U42),5) -> 6487.05 | W43: =ROUND(SUM(W38:W42),5) -> 1022.67 | Y43: =ROUND(SUM(Y38:Y42),5) -> 788.85 | AA43: =ROUND(SUM(AA38:AA42),5) -> 656.32 | AC43: =ROUND(SUM(AC38:AC42),5) -> 679.29 | AE43: =ROUND(SUM(AE38:AE42),5) -> 557.12 | AG43: =ROUND(SUM(AG38:AG42),5) -> 4815.47 | AI43: =ROUND(SUM(AI38:AI42),5) -> 151.17 | AK43: =ROUND(SUM(AK38:AK42),5) -> 140.24 | AM43: =ROUND(SUM(AM38:AM42),5) -> 346.21 | AO43: =ROUND(SUM(AO38:AO42),5) -> 7002.85 | AQ43: =ROUND(SUM(AQ38:AQ42),5) -> 6590.77 | AS43: =ROUND(SUM(AS38:AS42),5) -> 7748.38 | AU43: =ROUND(SUM(AU38:AU42),5) -> 2169.07 | AW43: =ROUND(SUM(E43:AU43),5) -> 66312.06
D45: Dates of Holiday Pay | E45: 2018-01-02 | G45: 7/4, 11/23, 12/26 | I45: 1/2,4/14, 5/29,7/4 | M45: 9/4, 12/26 | O45: 1/2, 12/25 | Q45: 1/2, 4/14, 5/29, 7/4, | S45: 1/2, 4/14, 5/29, 7/4 | U45: 1/2, 4/14, 5/29, 7/4 | W45: 1/2, 5/29, 7/4, | Y45: 5/29 7/4, 9/4, | AA45: 2018-11-23 | AC45: 1/2, 5/29, 9/4 | AE45: 4/14, 7/4, | AG45: 1/2, 4/14, 5/29 | AI45: 2018-04-14 | AK45: 11/3, 12/26 | AM45: 2018-01-02 | AO45: 1/2, 4/14, 5/29, | AQ45: 1/2, 4/14, 5/29, 7/4 | AS45: 1/2, 4/14, 5/29, | AU45: 1/2, 4/14, 5/26,
I46: 9/4. 11/23, 11/24, | Q46: 9/4 ,11/23, 11/24, | S46: 9/4, 11/23, 11/24, | U46: 9/4, 11/23, 11/24, | W46: 9/4, 11/23, | Y46: 12/25, 12/26 | AC46: 11/23, 12/25 | AE46: 11/24, 12/26 | AG46: 7/4, 9/4, 11/23, | AO46: 7/4, 9/4,11/24 | AQ46: 9/4, 11/23, 11/24 | AS46: 7/4, 11/23, 11/24, | AU46: 7/4, 9/4, 11/24
I47: 12/25, 12/26 | Q47: 12/25, 12/26 | S47: 12/25, 12/26 | U47: 12/25, 12/26 | W47: 12/25, 12/26 | AG47: 11/24,12/25,12/26 | AO47: 12/25, 12/26 | AQ47: 12/25, 12/26 | AS47: 12/25, 12/16 | AU47: 12/25, 12/26
AU49: 12/18 Death
AU50: in the family
